bitfinex-derivatives/quotes_ETHF0:USTF0_20251203
["timestamp","ask_amount","ask_price","bid_price","bid_amount"]
[1764776239397,3.2078,3085.1,3084.7,3.4919]
[1764776239903,3.2078,3085.1,3084.6,2.1577]
[1764776240098,3.2078,3085.1,3085.0,3.4919]
[1764776240396,3.2078,3085.1,3084.6,2.1577]
[1764776240589,3.2078,3084.7,3084.4,0.00406757]
[1764776240789,3.2078,3084.7,3084.1,0.00486175]
[1764776240987,0.00244627,3085.4,3084.4,3.2078]
[1764776241190,0.00244627,3085.4,3084.6,2.1577]
[1764776241398,0.00244627,3085.4,3084.8,3.2078]
[1764776241590,0.00244627,3085.4,3085.2,2.1577]
[1764776241796,0.00244627,3085.4,3084.8,3.2078]
[1764776241996,0.00244627,3085.4,3084.8,3.21090095]
[1764776242196,5.42046225,3085.1,3084.8,0.00310095]
[1764776244300,0.7707,3084.2,3084.1,3.21266175]
[1764776244499,1.5414,3084.2,3084.1,0.00486175]
[1764776245402,1.5414,3084.2,3084.1,0.00745978]
[1764776246002,2.21266225,3084.4,3084.1,0.00745978]
[1764776247012,3.2078,3084.5,3084.3,3.7768]
[1764776247200,3.2078,3084.5,3084.1,0.00745978]
[1764776247597,0.7707,3084.2,3084.1,0.00745978]
[1764776248304,1.5414,3084.2,3084.1,0.00745978]
[1764776248500,0.7632,3083.4,3083.1,1.73906416]
[1764776248692,3.2078,3083.5,3083.0,0.16212]
[1764776248893,2.21266225,3083.7,3083.0,0.16212]
[1764776249196,2.21266225,3083.7,3082.9,3.2078]
[1764776249397,3.2078,3084.0,3083.4,5.5855]
[1764776249597,0.00486175,3083.6,3083.5,7.5651]
[1764776250605,0.00486175,3083.6,3083.5,3.7768]
[1764776251004,0.00486175,3083.6,3083.4,2.3777]
[1764776251202,1.5264,3083.5,3083.0,3.2078]
[1764776251404,1.89316142,3083.4,3083.3,3.7768]
[1764776251602,1.89316142,3083.4,3083.0,3.2078]
[1764776253809,1.89316142,3083.4,3083.3,3.7768]
[1764776254513,1.89316142,3083.4,3083.3,7.827]
[1764776255204,1.89316142,3083.4,3083.0,3.36993]
[1764776255412,1.89316142,3083.4,3083.3,3.6763]
[1764776255708,1.89316142,3083.4,3083.0,3.36993]
[1764776255910,1.89316142,3083.4,3083.3,7.7265]
[1764776256101,1.89316142,3083.4,3083.0,3.2078]
[1764776256711,0.7884,3083.1,3083.0,3.2078]
[1764776256907,0.79153146,3083.1,3083.0,3.2078]
[1764776257108,0.00313146,3083.1,3083.0,10.9343]
[1764776257804,0.00313146,3083.1,3083.0,11.09643]
[1764776258006,1.89629288,3083.1,3083.0,7.88863]
[1764776258307,0.00313146,3083.1,3083.0,7.88863]
[1764776258700,0.39733146,3083.1,3083.0,0.16213]
[1764776258899,2.29049288,3083.1,3082.9,0.00321346]
[1764776259105,0.3942,3083.0,3082.9,0.00321346]
[1764776260811,1.89629288,3083.1,3082.9,0.00321346]
[1764776261114,0.7884,3083.0,3082.9,0.00321346]
[1764776261310,0.3942,3083.0,3082.9,0.00321346]
[1764776261709,1.89629288,3083.1,3082.9,3.67951346]
[1764776261910,0.7884,3083.0,3082.9,0.00321346]
[1764776265914,0.7884,3083.0,3082.8,0.00245863]
[1764776266120,0.7884,3082.9,3082.8,0.00245863]
[1764776267308,0.3942,3082.3,3082.2,5.3655]
[1764776267515,2.28736142,3082.6,3082.5,2.3844]
[1764776267814,2.68156142,3082.6,3082.5,2.3844]
[1764776268017,2.68156142,3082.6,3082.2,5.3655]
[1764776268324,2.68156142,3082.6,3082.2,5.36813104]
[1764776270512,0.00313146,3083.1,3082.6,7.4931]
[1764776270712,1.89629288,3083.1,3083.0,2.268]
[1764776270917,0.00313146,3083.1,3083.0,9.7611]
[1764776272525,0.00313146,3083.1,3083.0,5.9372]
[1764776272827,0.00313146,3083.1,3083.0,9.7611]
[1764776274125,0.00313146,3083.1,3083.0,9.92323]
[1764776274429,0.00486175,3083.6,3083.5,5.9372]
[1764776274623,0.00486175,3083.6,3083.5,2.268]
[1764776274819,0.00486175,3083.6,3083.5,9.7611]
[1764776275216,0.00721416,3083.6,3083.5,9.7611]
[1764776275521,0.00721416,3083.6,3083.5,2.268]
[1764776277219,0.00721416,3083.6,3083.0,5.4758]
[1764776277429,1.89316142,3083.3,3083.0,5.4758]
[1764776277630,1.89316142,3083.3,3083.2,7.4931]
[1764776278326,1.89316142,3083.3,3083.2,3.6692]
[1764776278725,1.89316142,3083.3,3083.0,5.4758]
[1764776278930,0.72419869,3083.2,3082.6,3.2078]
[1764776279229,0.00721416,3083.6,3082.0,4.94686416]
[1764776279230,4.1324,3082.4,3082.0,4.94686416]
[1764776279418,9.23336142,3082.3,3082.2,2.16033104]
[1764776279619,9.23336142,3082.3,3081.6,2.48095222]
[1764776279620,2.0662,3081.9,3081.6,1.73906416]
[1764776280029,0.00486175,3082.1,3081.8,3.6692]
[1764776280229,0.00486175,3082.1,3082.0,5.9372]
[1764776280629,0.00486175,3082.1,3082.0,5.94117558]
[1764776280827,4.13726175,3082.1,3082.0,2.27197558]
[1764776281428,4.13726175,3082.1,3082.0,0.00397558]
[1764776281729,4.1324,3081.2,3081.0,2.268]
[1764776281927,4.1324,3081.1,3081.0,2.268]
[1764776282127,6.02556142,3081.1,3081.0,2.268]
[1764776282521,6.02922302,3081.1,3081.0,2.27201828]
[1764776282736,3.2078,3081.8,3081.7,3.6692]
[1764776283232,5.7384,3081.6,3081.0,2.27201828]
[1764776283434,1.89316142,3081.3,3081.2,7.7446]
[1764776283835,1.89728551,3081.3,3081.2,7.7446]
[1764776284026,0.00412409,3081.3,3081.2,7.7446]
[1764776284630,5.74252409,3081.3,3081.0,1.10048824]
[1764776284930,3.7234,3080.7,3080.6,7.307]
[1764776285137,5.10096142,3081.1,3081.0,4.0992]
[1764776285336,8.82436142,3081.1,3081.0,4.0992]
[1764776285734,12.46376142,3081.1,3081.0,4.10193282]
[1764776285938,12.46376142,3081.1,3081.0,0.00273282]
[1764776286132,2.3162,3081.0,3080.2,3.37007]
[1764776286333,2.3162,3081.0,3080.2,3.2078]
[1764776286334,12.46376142,3080.6,3080.2,3.2078]
[1764776286531,9.25596142,3080.6,3080.2,3.2078]
[1764776286837,12.46376142,3080.6,3080.2,3.2078]
[1764776287030,0.00412409,3081.3,3080.5,10.0073]
[1764776287031,1.89316142,3081.1,3080.5,10.0073]
[1764776287231,3.2078,3081.2,3081.1,4.0992]
[1764776287431,3.2078,3081.2,3081.1,7.7446]
[1764776287631,0.00412409,3081.3,3081.2,7.7446]
[1764776288232,3.2078,3081.7,3081.6,10.0073]
[1764776288438,0.00486175,3082.1,3082.0,7.7446]
[1764776289237,0.00864589,3082.1,3082.0,4.0992]
[1764776289635,0.00864589,3082.1,3082.0,7.7446]
[1764776291441,3.2078,3082.9,3082.8,7.7446]
[1764776292141,3.2078,3082.9,3082.8,4.0992]
[1764776292329,3.21010439,3082.9,3082.8,10.01071584]
[1764776292536,0.00230439,3082.9,3082.8,10.17285584]
[1764776292735,0.00486175,3083.2,3083.1,7.7446]
[1764776293741,3.2078,3083.8,3083.7,7.7446]
[1764776294047,3.21192358,3083.8,3083.7,7.7446]
[1764776294248,10.57472358,3083.8,3082.6,4.94686416]
[1764776294437,3.2078,3083.4,3082.6,3.2078]
[1764776294839,3.21266175,3083.4,3082.6,3.2078]
[1764776295042,3.7234,3082.2,3082.1,1.73906416]
[1764776295247,3.7234,3082.0,3081.9,1.73906416]
[1764776295445,3.7234,3081.9,3081.2,0.16222]
[1764776295646,3.7234,3081.9,3081.2,0.40877781]
[1764776295946,3.7234,3081.9,3081.2,0.16222]
[1764776296146,0.00486175,3081.9,3081.2,0.17065821]
[1764776296442,0.00486175,3081.9,3081.8,7.7446]
[1764776296644,0.00486175,3081.9,3081.4,3.2078]
[1764776296844,0.00486175,3081.9,3081.8,4.0992]
[1764776297148,0.00486175,3081.9,3081.2,0.00843821]
[1764776297537,0.00486175,3081.9,3081.2,7.75303821]
[1764776297538,1.89316142,3081.5,3081.2,7.75303821]
[1764776297736,0.00242124,3081.5,3081.4,4.0992]
[1764776297941,0.00242124,3081.5,3081.2,0.00843821]
[1764776298143,3.2078,3081.3,3081.2,4.10763821]
[1764776298337,3.2078,3081.3,3081.2,0.00843821]
[1764776298852,6.9312,3081.3,3081.2,0.00843821]
[1764776299151,10.5706,3081.3,3081.2,0.00843821]
[1764776299565,3.2078,3081.3,3081.2,4.10763821]
[1764776299750,0.00242124,3081.5,3081.4,7.7446]
[1764776300052,1.89558266,3081.5,3081.2,0.00843821]
[1764776301051,3.7234,3081.3,3081.2,0.00843821]
[1764776301754,10.5706,3081.3,3081.2,0.00843821]
[1764776301948,1.89316142,3080.9,3080.0,3.2078]
[1764776302147,3.2078,3080.8,3080.0,3.2078]
[1764776302959,3.2078,3080.8,3080.0,3.21193311]
[1764776303259,4.20936142,3081.4,3080.7,7.7446]
[1764776303260,3.2078,3081.4,3080.7,7.7446]
[1764776304656,0.00242124,3081.5,3081.4,7.7446]
[1764776305948,0.00242124,3081.5,3081.0,2.2627]
[1764776306153,3.2078,3081.2,3080.8,10.772]
[1764776306550,0.00242124,3081.5,3081.1,4.0992]
[1764776307258,3.2078,3081.2,3081.1,4.0992]
[1764776307562,0.00242124,3081.5,3081.1,4.0992]
[1764776308665,10.5706,3081.2,3080.8,10.772]
[1764776310062,7.3628,3080.9,3080.8,10.772]
[1764776310265,1.89316142,3080.9,3080.3,7.307]
[1764776310466,3.2078,3080.8,3080.3,7.307]
[1764776310666,3.2078,3080.8,3080.7,7.7446]
[1764776310862,6.9312,3080.8,3080.4,2.2627]
[1764776311055,6.9312,3080.8,3080.3,3.2078]
[1764776311261,3.2078,3080.4,3080.0,0.00413311]
[1764776311766,7.3628,3080.1,3080.0,0.00413311]
[1764776311960,7.3628,3080.1,3079.5,3.2078]
[1764776312164,3.2078,3080.0,3079.5,3.2078]
[1764776312768,3.2078,3080.0,3079.9,4.0992]
[1764776312959,3.2078,3080.0,3079.9,4.10218432]
[1764776313161,6.9312,3080.0,3079.9,0.00298432]
[1764776313469,10.8876,3080.0,3079.9,0.00298432]
[1764776314166,10.9903,3080.0,3079.9,0.00298432]
[1764776315268,7.7825,3079.6,3079.5,3.2078]
[1764776315470,10.9903,3079.6,3078.7,3.37015]
[1764776315665,7.7825,3078.8,3078.7,3.2078]
[1764776315867,10.9903,3078.8,3078.0,2.2627]
[1764776316068,0.0048698,3078.7,3078.0,2.2627]
[1764776316271,0.00783202,3078.7,3078.0,2.26622243]
[1764776319164,0.00783202,3078.7,3078.6,10.2903]
[1764776319669,0.00783202,3078.7,3078.6,10.45266]
[1764776319868,3.2078,3079.2,3079.1,7.5419]
[1764776320672,2.21943758,3080.3,3079.2,2.4248]
[1764776320673,6.9875,3079.6,3079.2,2.4248]
[1764776320877,3.21051283,3079.6,3079.5,7.5419]
[1764776321878,0.00271283,3079.6,3079.5,7.70421]
[1764776323475,0.0048698,3079.7,3079.6,0.16231]
[1764776323673,0.0048698,3079.7,3079.6,7.70421]
[1764776323874,3.2078,3080.0,3079.9,7.5419]
[1764776324081,3.2078,3080.5,3080.4,9.9667]
[1764776324579,3.21110073,3080.5,3080.4,9.97031463]
[1764776325478,3.21110073,3080.5,3080.4,7.54551463]
[1764776326070,6.99080073,3080.5,3080.4,0.00361463]
[1764776326272,3.21110073,3080.5,3080.4,3.72271463]
[1764776326472,3.21110073,3080.5,3080.4,7.54551463]
[1764776327778,10.81290073,3080.5,3080.4,0.00361463]
[1764776328878,7.6018,3080.2,3079.4,3.2078]
[1764776329174,3.2078,3080.0,3079.4,3.2078]
[1764776329374,3.2078,3080.0,3079.1,8.776]
[1764776329678,3.2078,3079.5,3079.1,8.776]
[1764776329879,3.2078,3079.5,3079.1,8.77923506]
[1764776330181,3.7797,3079.2,3079.1,8.77923506]
[1764776330377,3.2078,3079.5,3079.4,3.7191]
[1764776330573,6.9875,3079.5,3079.1,8.77923506]
[1764776330771,10.8096,3079.5,3079.1,8.77923506]
[1764776330975,7.6018,3079.2,3079.1,0.00323506]
[1764776332378,3.7797,3079.2,3079.1,0.00323506]
[1764776332682,3.2078,3079.5,3079.1,7.54513506]
[1764776333283,9.9585,3079.2,3079.1,0.00323506]
[1764776333485,3.7797,3078.2,3078.1,10.242]
[1764776333684,7.6018,3078.2,3078.1,10.242]
[1764776333887,3.7797,3078.2,3078.1,10.242]
[1764776334489,3.7828905,3078.2,3078.1,0.00375829]
[1764776334882,7.6049905,3078.2,3078.1,0.00375829]
[1764776335286,3.7797,3077.5,3077.1,13.233]
[1764776335485,6.9875,3077.5,3077.1,13.233]
[1764776336386,6.9875,3077.5,3077.1,13.23687447]
[1764776336582,3.7797,3077.2,3077.1,13.23687447]
[1764776336888,7.6018,3077.2,3076.4,3.2078]
[1764776337187,3.2078,3077.0,3076.4,3.2078]
[1764776337691,4.57613758,3077.4,3076.4,3.2078]
[1764776337692,4.57613758,3077.4,3076.9,3.7191]
[1764776337985,4.57613758,3077.4,3076.9,3.72269469]
[1764776338184,10.8096,3077.0,3076.9,0.00359469]
[1764776338490,6.9875,3077.0,3076.9,0.00359469]
[1764776338889,10.8096,3077.0,3076.9,0.00359469]
[1764776339489,3.2078,3077.0,3076.9,3.72269469]
[1764776339690,6.9875,3077.0,3076.9,0.00359469]
[1764776339988,3.2078,3077.4,3076.9,7.54549469]
[1764776340389,3.2078,3077.4,3077.3,7.5419]
[1764776340584,3.2078,3077.8,3077.7,3.7191]
[1764776340778,3.2078,3077.8,3076.9,0.00359469]
[1764776340779,10.8096,3077.8,3076.9,0.00359469]
[1764776340981,7.6018,3077.0,3075.8,4.94686416]
[1764776341179,3.2078,3076.5,3075.8,3.2078]
[1764776341386,5.42723758,3076.6,3075.6,5.6326]
[1764776341581,3.2078,3076.6,3075.6,5.6326]
[1764776341981,3.2078,3076.6,3076.0,3.2078]
[1764776342181,3.2078,3076.6,3076.0,3.21118241]
[1764776342687,0.0048698,3076.7,3076.6,3.7191]
[1764776343285,0.0048698,3076.7,3076.6,7.5419]
[1764776344792,3.2078,3077.5,3076.6,7.5419]
[1764776345783,4.57613758,3078.0,3076.7,0.0048698]
[1764776345784,3.4229,3076.8,3076.7,0.0048698]
[1764776345982,7.4534,3076.8,3076.7,0.0048698]
[1764776346578,3.2078,3077.0,3076.9,3.5579]
[1764776346780,0.0048698,3077.4,3077.3,3.5579]
[1764776346992,3.4277698,3077.4,3076.9,3.2078]
[1764776347180,3.4277698,3077.4,3077.3,10.5615]
[1764776347181,0.0048698,3077.4,3077.3,10.5615]
[1764776347783,0.0048698,3077.4,3077.3,7.3537]
[1764776348190,0.0048698,3077.4,3077.3,10.5615]
[1764776348390,0.0048698,3077.4,3077.3,7.3537]
[1764776348584,3.4277698,3077.4,3076.9,0.16245]
[1764776350488,3.4277698,3077.4,3076.7,3.2126698]
[1764776350489,8.8185698,3077.4,3076.7,3.2126698]
[1764776350995,6.6355698,3077.4,3076.8,2.06]
[1764776351495,3.2126698,3077.4,3077.3,7.3537]
[1764776351686,6.6355698,3077.4,3076.8,2.06]
[1764776352593,9.6364,3076.8,3076.7,0.0048698]
[1764776352794,9.6364,3076.8,3076.0,0.00338241]
[1764776352795,3.4229,3076.1,3076.0,0.00338241]
[1764776353099,2.183,3076.8,3076.0,3.56128241]
[1764776353292,3.2078,3076.5,3076.0,3.56128241]
[1764776355395,5.42723758,3077.3,3076.4,7.3537]
[1764776355596,3.2078,3077.3,3076.4,7.3537]
[1764776355996,1.6536698,3077.4,3076.4,7.3537]
[1764776355997,3.2078,3076.9,3076.4,7.3537]
[1764776356195,3.2078,3076.9,3076.4,3.5579]
[1764776356401,3.4229,3076.5,3076.2,3.2078]
[1764776356802,3.4229,3076.5,3076.0,0.00338241]
[1764776357096,2.183,3076.8,3076.4,3.5579]
[1764776357306,2.183,3076.8,3076.0,0.00338241]
[1764776357897,3.2078,3076.9,3076.0,0.00338241]
[1764776358797,3.2078,3076.9,3076.3,3.2078]
[1764776359600,2.183,3076.8,3076.3,3.2078]
[1764776359999,3.2078,3076.9,3076.3,3.2078]
[1764776360192,3.2078,3076.9,3076.8,3.5579]
[1764776360394,3.2078,3076.9,3076.8,7.3537]
[1764776360600,3.2078,3076.9,3076.8,9.4137]
[1764776360800,6.6307,3076.9,3076.4,6.885]
[1764776361001,10.6612,3076.9,3076.4,6.885]
[1764776361206,6.6307,3076.9,3076.4,6.885]
[1764776361901,7.4534,3076.5,3076.4,6.885]
[1764776362101,7.4534,3076.5,3076.0,0.00338241]
[1764776362302,3.4229,3076.1,3076.0,0.00338241]
[1764776362498,7.4534,3076.1,3076.0,0.00338241]
[1764776362811,10.6612,3076.1,3075.4,3.2078]
[1764776363508,7.4534,3075.0,3074.9,3.2078]
[1764776363711,3.2078,3075.1,3074.7,13.232]
[1764776363901,3.21095365,3075.1,3074.7,13.23583354]
[1764776364102,0.00315365,3075.1,3075.0,3.5579]
[1764776364407,0.00315365,3075.1,3075.0,12.6215]
[1764776364906,3.2078,3076.0,3075.9,3.5579]
[1764776365408,3.2078,3076.4,3075.9,7.3537]
[1764776365903,3.21012176,3076.4,3075.9,3.5579]
[1764776366105,7.4534,3075.9,3075.8,0.00487812]
[1764776366804,3.2078,3076.0,3075.8,0.00487812]
[1764776367000,0.00232176,3076.4,3075.9,7.3537]
[1764776367309,0.00232176,3076.4,3076.3,7.3537]
[1764776367703,0.00232176,3076.4,3076.3,7.51618]
[1764776368511,0.00232176,3076.4,3076.3,10.72398]
[1764776368702,3.2078,3077.0,3076.5,0.16247]
[1764776368904,3.2078,3077.0,3076.3,4.94686416]
[1764776369110,3.2078,3077.0,3076.7,0.16246]
[1764776369705,3.21080203,3077.0,3076.7,0.16246]
[1764776370009,0.00300203,3077.0,3076.7,3.37026]
[1764776371299,0.00300203,3077.0,3076.9,7.51615]
[1764776371505,0.00300203,3077.0,3076.9,7.52003909]
[1764776371703,0.00487812,3077.2,3077.1,7.51614]
[1764776371905,3.2078,3077.5,3077.4,7.3537]
[1764776372802,0.00372938,3077.5,3077.4,7.3537]
[1764776375013,3.2346,3077.4,3077.1,1.74368906]
[1764776375222,0.00372938,3077.5,3077.4,3.3352]
[1764776376515,3.2078,3078.4,3078.3,6.9665]
[1764776376712,3.2078,3078.4,3078.3,3.3352]
[1764776377011,6.4424,3078.4,3077.8,3.2078]
[1764776377213,3.2346,3077.9,3077.4,5.1741]
[1764776377411,3.23806785,3077.9,3077.4,5.1741]
[1764776377611,3.23806785,3077.9,3077.4,3.2078]
[1764776378010,0.00346785,3077.9,3077.8,6.5075]
[1764776378210,0.00346785,3077.9,3077.8,3.1513]
[1764776378409,0.00346785,3077.9,3077.8,6.5075]
[1764776379013,3.16896785,3077.9,3077.4,3.2078]
[1764776379914,3.1655,3077.5,3077.4,3.2078]
[1764776380314,6.5634,3077.5,3077.4,3.2078]
[1764776380915,3.1655,3077.5,3077.4,3.2078]
[1764776381215,0.00346785,3077.9,3077.8,3.1513]
[1764776381418,3.16896785,3077.9,3077.4,5.2364]
[1764776381607,3.16896785,3077.9,3077.4,3.2078]
[1764776382206,0.00346785,3077.9,3077.8,6.5075]
[1764776382717,0.00346785,3077.9,3077.8,9.7153]
[1764776383917,0.00346785,3077.9,3077.8,6.3591]
[1764776384315,0.00346785,3077.9,3077.4,3.2078]
[1764776384316,6.56686785,3077.9,3077.4,3.2078]
[1764776384819,6.5634,3077.5,3077.4,3.2078]
[1764776385221,3.1655,3077.5,3077.4,3.2078]
[1764776385522,6.5634,3077.5,3077.4,3.2078]
[1764776385816,6.5634,3077.4,3077.3,0.00487812]
[1764776386118,5.11122065,3077.9,3077.3,3.15617812]
[1764776386317,3.21126785,3077.9,3077.3,3.15617812]
[1764776386514,3.21126785,3077.9,3077.4,2.0286]
[1764776386709,3.21126785,3077.9,3077.8,3.1513]
[1764776386911,3.21126785,3077.9,3077.8,6.5075]
[1764776387115,0.00346785,3077.9,3077.8,6.5075]
[1764776387921,6.37676785,3077.9,3077.4,2.0286]
[1764776388111,6.37676785,3077.9,3077.3,0.00487812]
[1764776388112,3.1655,3077.6,3077.3,0.00487812]
[1764776388311,6.5634,3077.4,3077.3,0.00487812]
[1764776389022,3.1655,3077.4,3077.3,0.00487812]
[1764776391316,0.00346785,3077.9,3077.3,0.00487812]
[1764776391317,3.2078,3077.7,3077.3,3.15617812]
[1764776391515,3.1655,3077.4,3077.3,0.00487812]
[1764776391717,6.5634,3077.4,3077.3,0.00487812]
[1764776392924,8.63,3077.4,3077.3,0.00487812]
[1764776394625,6.5634,3077.0,3076.9,0.00388909]
[1764776396320,9.5548528,3077.0,3076.9,0.00388909]
[1764776398124,6.5634,3076.7,3076.6,0.00487812]
[1764776398433,3.2078,3077.3,3076.6,6.51237812]
[1764776398728,6.5634,3076.7,3076.6,1.74856718]
[1764776399026,6.5634,3076.7,3076.6,0.00487812]
[1764776399227,6.5634,3076.7,3076.6,0.00775102]
[1764776400324,3.2078,3077.7,3077.0,2.0286]
[1764776400519,6.5634,3076.9,3076.7,4.95522577]
[1764776400833,6.5634,3076.8,3076.7,3.2078]
[1764776401023,6.5634,3076.7,3076.6,0.00775102]
[1764776401223,3.2078,3077.7,3077.1,6.5075]
[1764776401622,3.2078,3077.7,3077.6,3.1513]
[1764776401829,0.00487812,3078.0,3077.8,6.5075]
[1764776402124,6.5634,3077.4,3077.3,1.74742577]
[1764776402326,5.27927812,3078.0,3077.3,6.5075]
[1764776402924,2.07147812,3078.0,3077.6,3.2078]
[1764776403127,2.07147812,3078.0,3077.8,6.5075]
[1764776403128,0.00487812,3078.0,3077.8,6.5075]
[1764776403329,3.16896785,3077.9,3077.6,3.2078]
[1764776404030,0.00346785,3077.9,3077.8,8.00102577]
[1764776404226,6.20126785,3077.9,3077.8,1.74742577]
[1764776404425,6.20126785,3077.9,3077.6,4.95522577]
[1764776404426,6.1978,3077.8,3077.6,4.95522577]
[1764776404634,0.00346785,3077.9,3077.8,6.2536]
[1764776404830,0.00346785,3077.9,3077.8,7.9996161]
[1764776405827,6.20126785,3077.9,3077.8,1.7460161]
[1764776406025,0.00346785,3077.9,3077.8,7.9996161]
[1764776408328,0.00346785,3077.9,3077.8,6.416]
[1764776408835,2.0666,3079.0,3078.0,1.93749]
[1764776409036,2.0666,3079.0,3078.1,4.95288471]
[1764776409229,3.2078,3078.9,3078.1,3.2078]
[1764776409735,0.00487812,3078.8,3078.2,0.00487812]
[1764776410832,0.00487812,3078.8,3078.7,9.4614]
[1764776411224,3.2078,3079.8,3079.0,1.7751]
[1764776411431,9.4056,3079.8,3079.1,16.4138]
[1764776411830,3.2078,3079.8,3079.1,11.20648471]
[1764776412032,3.2078,3079.8,3079.1,9.4614]
[1764776412541,3.21565074,3079.8,3079.1,9.46486302]
[1764776413134,3.21565074,3079.8,3079.1,3.21126302]
[1764776413335,6.17035074,3079.8,3079.1,3.21126302]
[1764776413737,2.9547,3079.2,3079.1,3.21126302]
[1764776413938,5.11560354,3079.8,3079.1,9.46486302]
[1764776414237,3.21565074,3079.8,3079.7,6.2536]
[1764776414444,6.17035074,3079.8,3079.7,6.2536]
[1764776414642,6.17035074,3079.8,3079.7,2.8873]
[1764776414842,9.41345074,3079.8,3079.1,3.21126302]
[1764776416744,2.96255074,3079.8,3079.7,2.8873]
[1764776416942,0.00785074,3079.8,3079.7,6.2536]
[1764776417444,6.20565074,3079.8,3079.1,3.21126302]
[1764776418731,6.1978,3079.2,3079.1,3.21126302]
[1764776419333,6.1978,3079.2,3079.1,6.09856302]
[1764776419533,2.9547,3079.2,3079.1,6.09856302]
[1764776419740,6.1978,3079.2,3079.1,3.21126302]
[1764776419941,6.1978,3079.2,3079.1,0.00346302]
[1764776420337,6.1978,3078.8,3078.7,3.2078]
[1764776420631,6.1978,3078.7,3078.6,13.203]
[1764776420838,6.1978,3078.7,3078.2,0.00487812]
[1764776420839,6.1978,3078.3,3078.2,0.00487812]
[1764776421231,6.1978,3078.3,3078.2,0.00758069]
[1764776421436,1.8999528,3078.8,3078.2,6.26118069]
[1764776421631,1.8999528,3078.8,3078.2,0.00758069]
[1764776421632,6.1978,3078.3,3078.2,0.00758069]
[1764776421833,1.8999528,3078.8,3078.2,0.00758069]
[1764776422033,6.1978,3078.3,3078.2,0.00758069]
[1764776422237,1.8705,3079.0,3078.2,6.26118069]
[1764776422434,2.9547,3078.3,3078.2,2.89488069]
[1764776422639,3.2078,3078.9,3078.2,2.89488069]
[1764776423148,2.9547,3078.3,3078.2,2.89488069]
[1764776423644,3.2078,3078.9,3078.2,6.26118069]
[1764776424054,2.9547,3078.3,3078.2,6.42356069]
[1764776424549,3.2078,3078.9,3078.2,6.42356069]
[1764776425343,3.2078,3078.9,3078.8,2.8873]
[1764776425549,5.1077528,3079.3,3078.8,6.2536]
[1764776426153,3.2078,3079.3,3079.2,2.8873]
[1764776426351,6.1625,3079.3,3079.2,2.8873]
[1764776426745,9.4056,3079.3,3078.9,0.16234]
[1764776427164,6.1625,3079.3,3079.2,2.8873]
[1764776427352,6.1625,3079.3,3079.2,6.2536]
[1764776427556,6.1978,3079.1,3079.0,3.2078]
[1764776427848,1.8999528,3079.3,3079.0,9.4614]
[1764776428045,3.2078,3079.7,3079.0,11.2365]
[1764776428249,3.2078,3079.7,3079.6,6.2536]
[1764776428559,9.4056,3079.7,3079.0,5.14524]
[1764776429452,6.1625,3079.7,3079.6,2.8873]
[1764776429858,9.4056,3079.7,3079.0,5.14524]
[1764776430960,11.3055528,3079.7,3079.0,3.37014]
[1764776431159,2.9547,3079.1,3079.0,6.0951]
[1764776431451,5.1077528,3079.7,3079.0,11.2365]
[1764776431959,5.1077528,3079.7,3079.0,9.4614]
[1764776432961,1.8999528,3079.7,3079.0,11.2365]
[1764776433363,2.6133,3079.1,3079.0,9.4614]
[1764776433761,5.7099,3079.1,3079.0,3.2078]
[1764776434058,5.7099,3078.7,3078.6,3.2078]
[1764776434262,7.6098528,3078.7,3078.6,3.2078]
[1764776434560,5.7099,3078.7,3078.6,3.2078]
[1764776435964,5.7099,3078.7,3078.6,5.8729]
[1764776436169,2.22138002,3079.6,3078.9,5.83535]
[1764776436461,1.74199023,3080.9,3080.7,5.673]
[1764776436656,4.8107,3081.5,3080.8,8.8808]
[1764776436861,4.8107,3081.5,3081.1,2.6651]
[1764776437056,1.6029,3082.0,3081.4,5.8729]
[1764776437258,0.00655504,3082.0,3081.9,2.7989]
[1764776437456,0.00655504,3082.0,3081.9,5.7265]
[1764776438165,0.00655504,3082.0,3081.9,2.7989]
[1764776438664,0.00655504,3082.0,3081.9,5.7265]
[1764776439068,2.93725504,3082.0,3081.4,7.97721175]
[1764776439259,0.00655504,3082.0,3081.9,5.7265]
[1764776439459,0.00655504,3082.0,3081.9,2.7989]
[1764776439659,2.93725504,3082.0,3081.4,7.97721175]
[1764776439856,2.93725504,3082.0,3081.4,3.21621175]
[1764776440258,3.2078,3083.0,3082.5,5.7265]
[1764776440558,2.57337278,3083.9,3082.9,5.7265]
[1764776440863,5.0189,3084.0,3083.0,3.2078]
[1764776440864,2.9307,3083.6,3083.0,3.2078]
[1764776441367,0.00402699,3083.6,3083.0,3.21266887]
[1764776441763,5.6807,3083.1,3083.0,0.00486887]
[1764776442170,3.2078,3083.4,3083.0,2.80376887]
[1764776442465,3.2078,3083.4,3083.3,2.7989]
[1764776442672,3.2078,3083.4,3083.0,0.00486887]
[1764776443265,0.00402699,3083.6,3083.0,0.00486887]
[1764776443869,5.6807,3083.1,3083.0,0.00486887]
[1764776444166,1.8111,3083.4,3083.0,0.00486887]
[1764776444667,5.6807,3083.1,3083.0,0.00486887]
[1764776445468,8.8885,3083.1,3083.0,0.00486887]
[1764776445856,7.4918,3082.2,3082.1,7.878]
[1764776446056,5.6807,3082.1,3082.0,3.2078]
[1764776447175,0.00486887,3082.4,3082.0,3.2078]
[1764776447769,2.9307,3082.1,3082.0,3.2078]
[1764776448073,0.00486887,3082.4,3082.0,3.2078]
[1764776448565,0.00486887,3082.4,3082.3,5.7265]
[1764776449366,0.00486887,3082.4,3082.3,2.7989]
[1764776449572,2.93556887,3082.4,3082.0,3.2078]
[1764776449873,5.6807,3082.1,3082.0,3.2078]
[1764776450770,2.9307,3082.1,3082.0,3.2078]
[1764776450974,5.6807,3082.1,3082.0,3.2078]
[1764776451476,5.6807,3082.1,3081.7,0.00486887]
[1764776451776,2.22138002,3082.1,3081.7,0.00486887]
[1764776453268,5.6807,3081.8,3081.7,0.00486887]
[1764776453473,2.22138002,3082.1,3081.6,3.02918303]
[1764776453474,5.6807,3081.7,3081.6,3.02918303]
[1764776453671,2.9307,3081.5,3081.1,3.2078]